Cogmind - Beta 16.1 @@@ ROGUE MODE // 2026.02.20 @ 18:41:43 Player: JuustuToug Result: Destroyed by G-67 Veteran with Field Laser Performance ------------- Evolutions (6) 3000 Regions Visited (18) 3600 Robots Destroyed (178) 890 Value Destroyed (4926) 4926 Prototype IDs (26) 520 Alien Tech Used (0) 0 Bonus (2010) 2010 TOTAL SCORE: 14946 Bonus ------- High Alert Combat Kills 203 Follower Combat Kills 607 Entered Garrisons 200 Used RIF Installer 500 Entered DSFs 500 Cogmind --------- Core Integrity 0/1150 Matter 285/300 Energy 148/150 System Corruption 8% Temperature Cool (25) Movement Hovering (61) Location -4/Armory Parts ------- > --- POWER (2) -------- Micro Fission Core > --- PROPULSION (6) --- Improved Gyrokinetic Inverter Combat Linear Gravjet > --- UTILITY (7) ------ Advanced Signal Interpreter Advanced ECM Suite Advanced Hacking Suite > --- WEAPON (4) ------- Enhanced Force Lance > --- INVENTORY (5) ---- Improved Terrain Scanner Transport Network Coupler Advanced Hardlight Generator Cooled Plasma Cannon Enhanced Force Lance Peak State ------------ > --- POWER ------------ Light Angular Momentum Engine > --- PROPULSION ------- Improved Cesium-ion Thruster Improved Cesium-ion Thruster Improved Cesium-ion Thruster Advanced Surge Thruster Q-thruster Q-thruster > --- UTILITY ---------- Medium Storage Unit Advanced Weight Redist. System Advanced Signal Interpreter Core Analyzer Hacking Suite > --- WEAPON ----------- Phasing Sabre Spear > --- INVENTORY -------- Small Storage Unit Structural Scanner Transport Network Coupler Transmission Jammer Cooled Plasma Cannon Improved Grenade Launcher [Rating: 70] Favorites ----------- Power Heavy Ion Engine Engine Heavy Ion Engine Power Core Nuclear Core Reactor Light Quantum Reactor Propulsion Light Treads Treads Light Treads Wheel Compact Wheel Hover Unit Improved Gyrokinetic Inverter Flight Unit Improved Cesium-ion Thruster Utility High-capacity Storage Unit Device Seismic Detector Storage High-capacity Storage Unit Processor Core Analyzer Hackware Hacking Suite Protection Improved Light Armor Plating Weapon Advanced Beam Cannon Energy Gun Heavy Particle Gun Energy Cannon Advanced Beam Cannon Ballistic Gun Heavy Assault Rifle Ballistic Cannon Light Cannon Launcher Grenade Launcher Slashing Weapon Chainsword Piercing Weapon Spear Special Melee Weapon Datajack Build | -11 -10 -10 -9 -9 -8 -8 -8 -7 -7 -7 -6 -6 -6 -6 -5 -5 -4 -4 ------- Run | Yrd Mat Min Mat Min Mat Gar Mat Fac Was Fac Fac Was Fac DSF Fac Ext Fac Arm Slots Evolved 12 | . . . 2 . 2 . . 2 . . 2 . . . 2 . 2 . Power 1 | . . . . . . . . . . . . . . . 1 . . . Propulsion 4 | . . . . . . . . 2 . . 1 . . . 1 . . . Utility 5 | . . . . . 2 . . . . . 1 . . . . . 2 . Weapon 2 | . . . 2 . . . . . . . . . . . . . . . Parts Attached 131 | 8 5 2 22 2 1 8 19 8 3 13 8 . . . 6 7 8 11 Power 19 | 2 . 1 3 . . 1 1 1 . 3 1 . . . 1 1 1 3 Engine 10 | 2 . 1 1 . . 1 1 . . 1 1 . . . 1 . 1 . Core 8 | . . . 2 . . . . 1 . 2 . . . . . 1 . 2 Reactor 1 | . . . . . . . . . . . . . . . . . . 1 Propulsion 35 | 2 . . 8 2 . . 6 4 . 4 . . . . 3 2 2 2 Treads 20 | 2 . . 8 1 . . 5 4 . . . . . . . . . . Leg . | . . . . . . . . . . . . . . . . . . . Wheel 2 | . . . . 1 . . 1 . . . . . . . . . . . Hover 5 | . . . . . . . . . . . . . . . 1 . 2 2 Flight 8 | . . . . . . . . . . 4 . . . . 2 2 . . Utility 37 | 2 2 . 1 . 1 3 3 . 3 4 5 . . . 2 2 5 4 Device 21 | 1 . . 1 . . 3 3 . 2 1 1 . . . 1 1 4 3 Storage 5 | 1 2 . . . . . . . . . 1 . . . 1 . . . Processor 4 | . . . . . . . . . 1 2 1 . . . . . . . Hackware 4 | . . . . . 1 . . . . 1 . . . . . 1 . 1 Protection 3 | . . . . . . . . . . . 2 . . . . . 1 . Artifact . | . . . . . . . . . . . . . . . . . . . Weapon 40 | 2 3 1 10 . . 4 9 3 . 2 2 . . . . 2 . 2 Energy Gun 13 | . 1 1 5 . . . 5 1 . . . . . . . . . . Energy Cannon 7 | . . . 3 . . 1 . 1 . . 1 . . . . . . 1 Ballistic Gun 10 | 2 . . 2 . . 3 3 . . . . . . . . . . . Ballistic Cannon 1 | . 1 . . . . . . . . . . . . . . . . . Launcher 4 | . 1 . . . . . 1 . . 1 1 . . . . . . . Special Weapon . | . . . . . . . . . . . . . . . . . . . Impact Weapon . | . . . . . . . . . . . . . . . . . . . Slashing Weapon 2 | . . . . . . . . 1 . . . . . . . 1 . . Piercing Weapon 2 | . . . . . . . . . . 1 . . . . . . . 1 Special Melee Weapon 1 | . . . . . . . . . . . . . . . . 1 . . Unidentified Prototypes 11 | . . . 3 . . . 1 3 . 2 1 . . . . . . 1 Parts Lost 43 | . . 1 1 . . 4 5 . 4 . . . . . 1 13 1 13 Power 7 | . . . . . . 1 . . . . . . . . . 3 . 3 Propulsion 12 | . . . . . . . 1 . 2 . . . . . . 7 . 2 Utility 12 | . . . . . . 1 1 . 1 . . . . . 1 1 1 6 Weapon 12 | . . 1 1 . . 2 3 . 1 . . . . . . 2 . 2 Highest Loss Streak 9 | . . 1 1 . . 4 4 . 4 . . . . . 1 6 1 9 To Critical Strikes 1 | . . . . . . . . . 1 . . . . . . . . . Average Backups 16 | 2 15 19 19 19 18 19 19 19 13 4 6 8 8 8 7 5 5 4 Power . | . 1 1 1 1 1 . . 1 . . 1 1 1 1 . . . . Propulsion 4 | 1 4 6 6 5 4 3 2 2 1 . . . . . . . . . Utility 6 | . 6 9 6 4 4 6 7 8 5 3 3 5 5 5 4 4 3 3 Weapon 5 | . 3 3 5 8 8 7 7 7 6 . 1 2 2 2 2 1 2 1 Tool/Special . | . . . . . . . . . . . . . . . . . . . Unused Backups 53 | . 5 1 16 . . 1 6 6 10 2 2 . 2 . . . . 2 Power 7 | . . . 4 . . . . 1 . 1 1 . . . . . . . Propulsion 5 | . 1 . 2 . . . . . 2 . . . . . . . . . Utility 29 | . 4 1 8 . . 1 3 4 3 1 1 . 2 . . . . 1 Weapon 11 | . . . 2 . . . 3 . 5 . . . . . . . . 1 Tool/Special 1 | . . . . . . . . 1 . . . . . . . . . . Average Slot Usage (%) 91 | . 100 99 99 100 97 99 85 83 71 49 79 80 80 80 68 65 46 43 Engine 7 | . 14 14 5 11 9 8 9 . . . 1 6 6 6 6 1 1 1 Core 2 | . . . 5 . . . . 6 4 2 4 . . . . 2 . 1 Treads 19 | . 28 28 21 22 18 10 9 29 20 . . . . . . . . . Wheel 1 | . . . . . . 7 8 . . . . . . . . . . . Flight 2 | . . . . . . . . . . 13 26 26 26 26 25 26 5 1 Device 12 | . 14 14 10 11 18 23 14 7 11 9 13 13 13 13 9 1 9 8 Storage 9 | . 14 14 11 11 9 9 9 7 4 . 5 6 6 6 5 4 . . Processor 1 | . . . . . . . . . 6 16 13 13 13 13 11 11 10 7 Energy Gun 13 | . 13 13 16 22 18 13 17 15 10 . . . . . . . . . Energy Cannon 7 | . . . 15 22 14 8 . . . . . . . . . . . . Ballistic Gun 8 | . 13 13 10 . . 13 18 13 4 . . . . . . . . . Peak Build Rating 70 | 7 9 10 25 24 28 30 54 63 59 46 55 51 52 51 67 70 48 63 Average Rating 27 | 5 8 9 20 23 26 27 45 59 32 27 47 51 51 50 53 47 35 45 On Entrance 33 | . 7 9 10 23 23 28 26 54 60 10 46 51 51 51 47 67 22 45 Avg Prop Armor Cover (%) 6 | . . . . . . 7 7 . . 2 1 . . . 4 4 2 11 Naked Turns . | . . . . . . . . . . . . . . . . . . . Heaviest Build 68 | 14 50 50 64 63 65 68 67 66 66 15 21 21 21 21 31 31 10 31 Greatest Support 88 | 40 40 40 40 40 40 40 40 88 88 22 22 22 22 24 35 35 15 44 Greatest Overweight (x) 4 | 2 1 1 3 1 1 4 4 . . . . . . . . . . 1 Average Overweight (x) . | . . 1 1 1 1 3 3 . . . . . . . . . . . Largest Inventory Capacity 20 | 8 20 20 20 20 20 20 20 20 20 5 8 8 8 8 10 10 5 5 Average Capacity 17 | 7 18 20 20 20 20 20 20 20 15 5 7 8 8 8 8 9 5 5 Most Carried 20 | 4 20 20 20 20 19 20 20 20 20 5 8 8 8 8 8 6 5 5 Average Carried 16 | 2 15 19 19 19 18 19 19 19 13 4 6 8 7 8 7 5 4 4 Final Capacity 20 | 8 20 20 20 20 20 20 20 20 5 5 8 8 8 8 10 5 5 5 Final Carried 20 | 4 20 20 19 19 19 20 20 20 5 5 8 8 8 8 6 5 5 5 Class Distribution -------------------- 38% | Gunner 24% | Mutant 14% | Scavenger-Skirmisher 9% | Scavenger-Gunner 5% | Scout Dominant Class ---------------- Mutant | -10/Materials Mutant | -10/Mines Gunner | -9/Materials Gunner | -9/Mines Gunner | -8/Materials Gunner | -8/Garrison Scavenger-Skirmisher | -8/Materials Scavenger-Skirmisher | -7/Factory Gunner | -7/Waste Sprinter | -7/Factory Scout | -6/Factory Scout | -6/Waste Scout | -6/Factory Scout | -6/DSF Scout | -5/Factory Scavenger-Sprinter | -5/Extension Mutant | -4/Factory Mutant | -4/Armory Resources | -11 -10 -10 -9 -9 -8 -8 -8 -7 -7 -7 -6 -6 -6 -6 -5 -5 -4 -4 ----------- Run | Yrd Mat Min Mat Min Mat Gar Mat Fac Was Fac Fac Was Fac DSF Fac Ext Fac Arm Matter Collected 4039 | 296 275 148 722 89 41 447 499 550 . 391 103 . . 43 49 123 12 251 Remotely . | . . . . . . . . . . . . . . . . . . . Salvage Created 6401 | 75 299 195 1663 . 299 537 1379 600 437 454 116 . . 43 67 173 12 52 Parts 384 | 9 26 12 105 . 27 32 88 30 1 22 11 . . . 2 8 2 9 Haulers Intercepted 11 | . 1 . 4 . . . 3 1 . 2 . . . . . . . . Recyclers Shooed 5 | 1 3 . . . . . 1 . . . . . . . . . . . Parts Field Recycled . | . . . . . . . . . . . . . . . . . . . Retrieved Matter . | . . . . . . . . . . . . . . . . . . . Parts Self-Destructed . | . . . . . . . . . . . . . . . . . . . Prevented . | . . . . . . . . . . . . . . . . . . . Parts Restored . | . . . . . . . . . . . . . . . . . . . Kills | -11 -10 -10 -9 -9 -8 -8 -8 -7 -7 -7 -6 -6 -6 -6 -5 -5 -4 -4 ------- Run | Yrd Mat Min Mat Min Mat Gar Mat Fac Was Fac Fac Was Fac DSF Fac Ext Fac Arm Combat Hostiles Destroyed 117 | . 4 5 33 1 11 15 25 6 2 4 . . . . 1 5 . 5 Melee 2 | . . . . . . . . 1 . . . . . . 1 . . . Guns 52 | . 4 1 8 . 1 7 25 5 1 . . . . . . . . . Cannons 19 | . . . 13 1 2 3 . . . . . . . . . . . . AOE 43 | . . 4 12 . 7 5 . . 1 4 . . . . . 5 . 5 Classes Destroyed 19 | 2 5 1 4 . 1 1 3 1 1 . . . . . . . . . Worker 15 | . 1 . 4 . 1 . 4 3 . 1 . . . . . . 1 . Builder 6 | . 1 . 1 . 1 . . 1 . . 1 . . . . 1 . . Tunneler 5 | 1 1 1 1 . . . 1 . . . . . . . . . . . Hauler 11 | . 1 . 4 . . . 3 1 . 2 . . . . . . . . Recycler 10 | 1 . 2 2 . . . . 2 . 2 . . . . . 1 . . Mechanic 2 | . . . . . 1 . . . . . 1 . . . . . . . Operator 6 | . 1 . 1 . 2 . 1 . . . 1 . . . . . . . Watcher 6 | . . . 3 . . 1 . . . . 1 . . . . 1 . . Swarmer 37 | . . 3 6 . 7 3 6 . . 2 . . . . . 5 . 5 Cutter 3 | . . . . . . 3 . . . . . . . . . . . . Grunt 50 | . 4 2 17 . 4 5 13 2 . 2 . . . . 1 . . . Brawler 1 | . . . 1 . . . . . . . . . . . . . . . Duelist 1 | . . . 1 . . . . . . . . . . . . . . . Sentry 16 | . . . 8 . . 4 2 2 . . . . . . . . . . Specialist 2 | . . . . . . . 2 . . . . . . . . . . . Hunter 1 | . . . . . . . 1 . . . . . . . . . . . Programmer 2 | . . . . . . . . 2 . . . . . . . . . . Heavy 1 | . . . . . . . 1 . . . . . . . . . . . Compactor 2 | . . . . . . . . . 2 . . . . . . . . . Best Kill Streak 11 | 2 2 3 11 1 9 7 10 2 1 5 1 . . . 1 7 1 5 Combat Bots Only 10 | . 2 3 10 1 6 7 7 2 1 4 . . . . 1 5 . 5 Max Kills in Single Turn 4 | 1 1 1 3 1 4 2 3 1 1 1 1 . . . 1 3 1 2 Gunslinging 1 | . . . . . . . 1 . . . . . . . . . . . Exploded 3 | . . 1 3 . 3 2 . . 1 1 . . . . . 2 . 2 Melee 1 | . . . . . . . . 1 . . . . . . 1 . . . Uniques/NPCs Destroyed 1 | . . . . 1 . . . . . . . . . . . . . . YI-UF0 (-9/Mines) Combat | -11 -10 -10 -9 -9 -8 -8 -8 -7 -7 -7 -6 -6 -6 -6 -5 -5 -4 -4 -------- Run | Yrd Mat Min Mat Min Mat Gar Mat Fac Was Fac Fac Was Fac DSF Fac Ext Fac Arm Hostile Shots Fired 809 | . 27 19 112 12 11 63 99 124 3 32 18 . . 2 16 72 20 179 Missed 340 | . 11 4 34 5 5 23 41 47 . 20 15 . . 1 8 32 8 86 Hits 469 | . 16 15 78 7 6 40 58 77 3 12 3 . . 1 8 40 12 93 Melee 8 | . . . 2 . . . . . 3 . . . . 1 . . . 2 Projectile 461 | . 16 15 76 7 6 40 58 77 . 12 3 . . . 8 40 12 91 AOE 20 | . . . . 12 . 3 . . . . . . . . . 2 . 3 Critical Strikes 21 | . 1 1 1 . . 2 1 1 3 3 . . . 1 2 1 . 4 Damage Taken 8077 | . 221 227 996 280 76 697 1009 610 244 206 24 . . 22 140 1192 280 1853 Core 2506 | . 37 25 170 100 . 134 140 54 40 46 12 . . . 38 548 50 1112 Absorbed by Shields 82 | . . . . . . . . . . . . . . . . 12 . 70 Regen/Repaired (Parts) 217 | . . . 132 . . . . . . 85 . . . . . . . . Core Remaining (%) 68 | 100 . 75 . 32 . . 50 . . 80 . . . 98 . 41 . . Volleys Fired 299 | 4 46 19 66 3 16 39 56 26 11 5 . . . . . 2 . 6 Largest 4 | 2 2 2 4 4 4 4 4 4 4 1 . . . . . 1 . 1 Hottest 248 | 40 60 60 248 247 247 247 221 163 169 33 . . . . . 36 . 36 Shots Fired 871 | 8 86 29 228 12 46 105 203 100 41 5 . . . . . 2 . 6 Gun 661 | 8 80 20 129 6 20 70 197 100 31 . . . . . . . . . Cannon 141 | . . . 88 6 20 27 . . . . . . . . . . . . Launcher 69 | . 6 9 11 . 6 8 6 . 10 5 . . . . . 2 . 6 Special . | . . . . . . . . . . . . . . . . . . . Kinetic 330 | 8 48 10 67 . . 33 104 51 9 . . . . . . . . . Thermal 472 | . 32 10 150 12 40 64 93 49 22 . . . . . . . . . Explosive 69 | . 6 9 11 . 6 8 6 . 10 5 . . . . . 2 . 6 Electromagnetic . | . . . . . . . . . . . . . . . . . . . Robot Hit Streak 23 | 2 16 3 23 1 9 20 11 6 14 7 . . . . . 8 . 1 Robot Miss Streak 4 | 1 2 4 4 3 2 3 3 4 1 . . . . . . . . 1 Penetration Max 1 | . . . . . . . 1 . . . . . . . . . . . Secondary Targets 10 | . . . . . . 2 8 . . . . . . . . . . . Max Gunslinging Chain 1 | . . . . . . 1 1 . . . . . . . . . . . Shots Hit Robots 482 | 5 60 10 116 4 25 46 103 53 31 14 6 . . . 5 2 1 1 Core Hits 275 | 4 20 10 72 1 18 32 57 19 11 10 3 . . . 2 8 . 8 Critical Kills 3 | . . . . . 1 . 2 . . . . . . . . . . . Critical Parts Destroyed 2 | . . . . . . . 2 . . . . . . . . . . . Critical Strikes 20 | . . . 2 . 2 3 10 2 1 . . . . . . . . . Burn 13 | . . . 2 . 1 3 6 . 1 . . . . . . . . . Meltdown 1 | . . . . . 1 . . . . . . . . . . . . . Destroy 4 | . . . . . . . 4 . . . . . . . . . . . Sever 2 | . . . . . . . . 2 . . . . . . . . . . Melee Attacks 79 | . . . . . . . . 15 . 12 15 . 1 2 13 3 6 12 Impact . | . . . . . . . . . . . . . . . . . . . Slashing 30 | . . . . . . . . 15 . 12 2 . . . . 1 . . Piercing 49 | . . . . . . . . . . . 13 . 1 2 13 2 6 12 Sneak Attacks 9 | . . . . . . . . . . 5 2 . . . 1 . 1 . Combat Hostiles . | . . . . . . . . . . . . . . . . . . . Follow-up Attacks 2 | . . . . . . . . . . . 1 . . . . 1 . . Damage Inflicted 14481 | 56 686 555 2671 80 879 1231 2248 1236 1966 1237 331 . . . 237 546 64 458 Guns 6528 | 56 682 120 1246 16 213 528 2214 959 494 . . . . . . . . . Cannons 1289 | . . . 720 60 244 265 . . . . . . . . . . . . Explosions 4891 | . . 400 700 . 422 438 12 . 1472 498 . . . . . 498 . 451 Melee 1662 | . . . . . . . . 243 . 739 331 . . . 237 48 64 . Ramming 111 | . 4 35 5 4 . . 22 34 . . . . . . . . . 7 Kinetic 2801 | 56 418 74 411 . . 176 1091 441 134 . . . . . . . . . Thermal 5202 | . 264 46 1555 76 457 617 1123 518 360 . . . . . . 186 . . Explosive 4705 | . . 400 700 . 422 438 12 . 1472 498 . . . . . 312 . 451 Electromagnetic . | . . . . . . . . . . . . . . . . . . . Impact . | . . . . . . . . . . . . . . . . . . . Slashing 1068 | . . . . . . . . 243 . 739 38 . . . . 48 . . Piercing 594 | . . . . . . . . . . . 293 . . . 237 . 64 . Highest Corruption 8 | . . . . . . 1 . 2 2 3 . . . . 2 2 2 8 Average Corruption 2 | . . . . . . 1 . 2 2 2 . . . . 2 2 2 4 Corruption Purged 1 | . . . . . . 1 . . . . . . . . . . . . Corruption Blocked . | . . . . . . . . . . . . . . . . . . . Effects 52 | . . . . . . 6 . 16 5 6 . . . . 1 2 1 15 Message Errors 9 | . . . . . . . . 3 1 . . . . . 1 . . 4 Matter Fused 7 | . . . . . . 1 . 1 . . . . . . . 1 . 4 Heat Flow Errors 9 | . . . . . . 2 . 2 . 1 . . . . . . . 4 Energy Discharges 8 | . . . . . . . . 4 2 2 . . . . . . . . Parts Fused 1 | . . . . . . . . . . 1 . . . . . . . . Data Loss (minor) 8 | . . . . . . 2 . . . 2 . . . . . 1 1 2 Data Loss (major) 4 | . . . . . . 1 . 1 1 . . . . . . . . 1 Misfires 1 | . . . . . . . . 1 . . . . . . . . . . Alerts 1 | . . . . . . . . 1 . . . . . . . . . . Weapon Failures 4 | . . . . . . . . 3 1 . . . . . . . . . Overload Shots . | . . . . . . . . . . . . . . . . . . . Overflow Damage 528 | . . 38 10 . 37 23 . . . 301 69 . . . . 10 24 16 Projectiles 20 | . . . 10 . 10 . . . . . . . . . . . . . Explosions 127 | . . 38 . . 27 23 . . . 13 . . . . . 10 . 16 Melee 381 | . . . . . . . . . . 288 69 . . . . . 24 . Knockbacks 2 | . . 1 . . . . 1 . . . . . . . . . . . Impact 2 | . . 1 . . . . 1 . . . . . . . . . . . Kinetic . | . . . . . . . . . . . . . . . . . . . Secondary . | . . . . . . . . . . . . . . . . . . . Self-Inflicted Damage 339 | . 9 75 13 . 11 39 . . 99 23 . . . . . 67 . 3 Shots 13 | . 1 4 1 . 1 2 . . 2 1 . . . . . 1 . . Rammed 15 | . 1 8 1 1 . . 1 1 . . . . . . . . . 2 Targets Rammed 19 | . 1 10 1 1 . . 1 3 . . . . . . . . . 2 Kicked . | . . . . . . . . . . . . . . . . . . . Crushed 4 | . . 2 . . . . . 2 . . . . . . . . . . Highest Temperature 384 | . 36 27 360 228 277 190 384 315 207 224 4 . . . 41 11 . 285 Average Temperature 104 | . 16 17 106 110 79 74 116 119 52 88 4 . . . 18 7 . 139 Received Heat Transfer 1842 | . 141 45 402 . 18 261 225 168 . 72 6 . . . 81 228 36 159 Effects 9 | . . . 4 . . . 3 2 . . . . . . . . . . Shutdowns 2 | . . . 1 . . . 1 . . . . . . . . . . . Energy Bleed 7 | . . . 3 . . . 2 2 . . . . . . . . . . Siege Activations . | . . . . . . . . . . . . . . . . . . . Martial Activations . | . . . . . . . . . . . . . . . . . . . Shielding Activations . | . . . . . . . . . . . . . . . . . . . Robots Disrupted . | . . . . . . . . . . . . . . . . . . . Combat Hostiles . | . . . . . . . . . . . . . . . . . . . Robots Corrupted . | . . . . . . . . . . . . . . . . . . . Combat Hostiles . | . . . . . . . . . . . . . . . . . . . Parts Fried . | . . . . . . . . . . . . . . . . . . . Impact Corruptions . | . . . . . . . . . . . . . . . . . . . Robots Melted 1 | . . . . . 1 . . . . . . . . . . . . . Combat Hostiles 1 | . . . . . 1 . . . . . . . . . . . . . Parts Melted 33 | . . . 9 . 3 9 9 3 . . . . . . . . . . Heat Transferred 11178 | . 600 100 3223 148 962 1458 2898 962 777 . . . . . . 50 . . Parts Sabotaged . | . . . . . . . . . . . . . . . . . . . Parts Stolen . | . . . . . . . . . . . . . . . . . . . Parts Stripped . | . . . . . . . . . . . . . . . . . . . Power Chain Reactions . | . . . . . . . . . . . . . . . . . . . Alert | -11 -10 -10 -9 -9 -8 -8 -8 -7 -7 -7 -6 -6 -6 -6 -5 -5 -4 -4 ------- Run | Yrd Mat Min Mat Min Mat Gar Mat Fac Was Fac Fac Was Fac DSF Fac Ext Fac Arm Maximum Alert Level 3 | . . . 2 1 1 2 2 1 . . . . . . . 1 . 3 Low Security (%) 72 | 100 100 100 73 96 64 11 . 56 100 100 100 100 100 100 100 38 100 41 Level 1 15 | . . . 13 4 35 26 42 43 . . . . . . . 61 . 20 Level 2 11 | . . . 13 . . 61 57 . . . . . . . . . . 24 Level 3 . | . . . . . . . . . . . . . . . . . . 12 Level 4 . | . . . . . . . . . . . . . . . . . . . Level 5 . | . . . . . . . . . . . . . . . . . . . High Security . | . . . . . . . . . . . . . . . . . . . Max Security . | . . . . . . . . . . . . . . . . . . . Peak Influence 749 | 10 50 127 631 239 230 542 673 295 79 171 107 33 28 46 115 269 110 749 Initial 295 | . . . 8 239 . 105 263 295 79 11 77 33 16 16 23 56 66 44 Average 145 | 1 4 25 173 29 157 398 457 181 57 27 71 31 12 30 46 178 60 351 Influence Increases 6266 | 10 193 225 1096 . 353 477 967 449 28 285 180 . 34 30 192 386 106 1255 Destroy 0b10 Robot/C 2640 | . 80 100 660 . 220 300 500 120 . 80 . . . . 20 160 . 400 Destroy 0b10 Robot/NC 325 | 10 25 15 80 . 25 10 45 35 . 40 20 . . . . 15 5 . Destroy Leader 512 | . 22 20 174 . 40 20 116 32 . 24 2 . . . . 22 . 40 Allied During Kill 84 | . . . . . 4 . . . . . . . . . . . . 80 Successful Hack 266 | . 32 . 30 . 2 . . 24 . 20 76 . 33 . 14 . 35 . Disable Machine 435 | . 15 75 45 . 15 15 45 15 . 30 15 . . 15 15 30 15 90 Anti-Garrison Action 50 | . . . . . . 50 . . . . . . . . . . . . Destroy Structure 474 | . 19 15 62 . 47 52 31 8 28 16 7 . 1 . 8 54 6 120 Partial Spotted 195 | . . . . . . . . . . 15 30 . . 15 60 30 30 15 Lose Combat Pursuer 885 | . . . 45 . . 30 30 15 . 60 30 . . . 75 75 15 510 Active Sensor Use 400 | . . . . . . . 200 200 . . . . . . . . . . Influence Decreases 5547 | 10 193 202 504 615 190 98 859 871 239 144 241 74 34 7 123 365 150 628 Entered New Map 1597 | . . . 15 376 . 58 279 355 149 6 81 64 7 7 23 59 70 48 Time Decay 3071 | 10 193 199 479 239 170 . 380 506 50 138 160 10 27 . 90 120 70 230 Lost Part 419 | . . 3 10 . . 40 50 . 40 . . . . . 10 126 10 130 Lost Ally 310 | . . . . . 20 . . 10 . . . . . . . 60 . 220 Purge Threat 150 | . . . . . . . 150 . . . . . . . . . . . Squads Dispatched 35 | . 3 . 2 . 3 . 8 7 . 2 1 . . 1 1 2 . 5 Investigation 11 | . 2 . 1 . . . 3 2 . . . . . . . 1 . 2 Extermination 7 | . . . . . . . . 2 . 1 1 . . . 1 . . 2 Reinforcement 16 | . 1 . 1 . 3 . 4 3 . 1 . . . 1 . 1 . 1 Assault . | . . . . . . . . . . . . . . . . . . . Garrison 1 | . . . . . . . 1 . . . . . . . . . . . Intercept . | . . . . . . . . . . . . . . . . . . . Searches Triggered . | . . . . . . . . . . . . . . . . . . . Construction Impeded 1 | . . . . . . . . 1 . . . . . . . . . . Haulers Reinforced 1 | . . . . . . . . 1 . . . . . . . . . . Active Scanning Responses 4 | . . . . . . . 2 2 . . . . . . . . . . Cargo Convoy Interrupts . | . . . . . . . . . . . . . . . . . . . Stealth | -11 -10 -10 -9 -9 -8 -8 -8 -7 -7 -7 -6 -6 -6 -6 -5 -5 -4 -4 --------- Run | Yrd Mat Min Mat Min Mat Gar Mat Fac Was Fac Fac Was Fac DSF Fac Ext Fac Arm Distress Signals 17 | . 3 . 3 . . . 4 . . . . . . . . 2 1 4 Communications Jammed . | . . . . . . . . . . . . . . . . . . . Distress Signals . | . . . . . . . . . . . . . . . . . . . Times Spotted 284 | . 16 5 42 1 11 17 35 14 6 10 5 5 . 2 16 22 15 62 Peak Tracking Total 19 | . 3 3 8 1 5 6 6 3 4 8 2 5 . 2 10 11 15 19 Tactical Retreats 31 | . . . 3 . . 2 2 1 . 3 1 . . . 2 4 1 12 ECM-based Alert Blocks 8 | . . . . . . . . . . . . . . . . . . 8 Traps | -11 -10 -10 -9 -9 -8 -8 -8 -7 -7 -7 -6 -6 -6 -6 -5 -5 -4 -4 ------- Run | Yrd Mat Min Mat Min Mat Gar Mat Fac Was Fac Fac Was Fac DSF Fac Ext Fac Arm Traps Triggered 17 | . . . 3 . . 4 1 2 . 3 1 . . . 2 1 . . Indirectly . | . . . . . . . . . . . . . . . . . . . Trap Hack Attempts . | . . . . . . . . . . . . . . . . . . . Triggered . | . . . . . . . . . . . . . . . . . . . Disarmed . | . . . . . . . . . . . . . . . . . . . Reprogrammed . | . . . . . . . . . . . . . . . . . . . Reused . | . . . . . . . . . . . . . . . . . . . Traps Extracted . | . . . . . . . . . . . . . . . . . . . Installed 1 | . . . . . . 1 . . . . . . . . . . . . Triggered . | . . . . . . . . . . . . . . . . . . . Machines | -11 -10 -10 -9 -9 -8 -8 -8 -7 -7 -7 -6 -6 -6 -6 -5 -5 -4 -4 ---------- Run | Yrd Mat Min Mat Min Mat Gar Mat Fac Was Fac Fac Was Fac DSF Fac Ext Fac Arm Machines Disabled 30 | . 1 5 3 . 1 2 3 1 . 2 1 . . 1 1 2 1 6 Max in Single Turn 2 | . 1 2 1 . 1 1 2 1 . 1 1 . . 1 1 2 1 1 Garrison Access 3 | . . . . . . . . 1 . 1 . . . . . . 1 . Garrison Relay 1 | . . . . . . 1 . . . . . . . . . . . . Energy Cycler 5 | . . . . . . . . . . . . . . . . 4 . 1 Machines Repaired . | . . . . . . . . . . . . . . . . . . . Machines Dismantled . | . . . . . . . . . . . . . . . . . . . Machines Sabotaged . | . . . . . . . . . . . . . . . . . . . Overloaded Fab Kills . | . . . . . . . . . . . . . . . . . . . Hacking | -11 -10 -10 -9 -9 -8 -8 -8 -7 -7 -7 -6 -6 -6 -6 -5 -5 -4 -4 --------- Run | Yrd Mat Min Mat Min Mat Gar Mat Fac Was Fac Fac Was Fac DSF Fac Ext Fac Arm Machines Accessed 68 | . 7 1 10 . 2 2 1 6 . 9 8 . 3 . 8 1 6 4 Terminals 47 | . 7 1 6 . 1 2 1 4 . 4 7 . 2 . 6 1 2 3 Fabricators 8 | . . . . . . . . 1 . 1 . . . . 2 . 3 1 Repair Stations 4 | . . . 2 . . . . . . 1 1 . . . . . . . Recycling Units . | . . . . . . . . . . . . . . . . . . . Scanalyzers 5 | . . . 2 . . . . . . 2 . . 1 . . . . . Garrison Access 4 | . . . . . 1 . . 1 . 1 . . . . . . 1 . Total Hacks 169 | . 20 2 41 . 4 6 3 19 . 18 13 . 6 . 17 2 11 7 Successful 80 | . 11 . 25 . 2 2 1 9 . 10 4 . 4 . 4 . 7 1 Failed 88 | . 9 2 16 . 2 4 2 10 . 7 9 . 2 . 13 2 4 6 Catastrophic 16 | . 1 . 1 . 1 . 1 2 . 1 3 . . . 5 . . 1 Database Lockouts 1 | . . . . . . . . . . 1 . . . . . . . . Manual 81 | . 19 2 13 . 3 1 . 13 . 8 6 . . . 8 . 6 2 Terminals 119 | . 20 2 23 . 3 6 3 15 . 7 12 . 3 . 13 2 6 4 Fabricators 17 | . . . . . . . . 3 . 3 . . . . 4 . 4 3 Repair Stations 16 | . . . 12 . . . . . . 3 1 . . . . . . . Recycling Units . | . . . . . . . . . . . . . . . . . . . Scanalyzers 13 | . . . 6 . . . . . . 4 . . 3 . . . . . Garrison Access 4 | . . . . . 1 . . 1 . 1 . . . . . . 1 . Terminal Hacks 24 | . 4 . 5 . . 2 1 4 . . 3 . 2 . 1 . 1 1 Part Schematic 1 | . 1 . . . . . . . . . . . . . . . . . Prototype ID Bank 8 | . 1 . 4 . . . . 2 . . 1 . . . . . . . Open Door 2 | . . . . . . . . . . . . . . . 1 . . 1 Open DSF 1 | . . . . . . . . . . . . . 1 . . . . . Branch Access Points 4 | . . . . . . . . 1 . . 1 . 1 . . . 1 . Emergency Access Points 1 | . . . . . . . . . . . 1 . . . . . . . Terminal Index 3 | . 2 . . . . . . 1 . . . . . . . . . . Unreport Threat 1 | . . . . . . . 1 . . . . . . . . . . . Surveillance Status 1 | . . . 1 . . . . . . . . . . . . . . . Garrison Registry 1 | . . . . . . 1 . . . . . . . . . . . . Security Stations 1 | . . . . . . 1 . . . . . . . . . . . . Fabricator Hacks 5 | . . . . . . . . . . 1 . . . . 2 . 2 . Network Status 3 | . . . . . . . . . . 1 . . . . 1 . 1 . Build 2 | . . . . . . . . . . . . . . . 1 . 1 . Repair Station Hacks 11 | . . . 9 . . . . . . 2 . . . . . . . . Scan Component 6 | . . . 5 . . . . . . 1 . . . . . . . . Repair 5 | . . . 4 . . . . . . 1 . . . . . . . . Recycling Unit Hacks . | . . . . . . . . . . . . . . . . . . . Scanalyzer 9 | . . . 4 . . . . . . 3 . . 2 . . . . . Insert Component 2 | . . . . . . . . . . 1 . . 1 . . . . . Analyze 2 | . . . . . . . . . . 1 . . 1 . . . . . Retrieve Study 5 | . . . 4 . . . . . . 1 . . . . . . . . Garrison Access Hacks 4 | . . . . . 1 . . 1 . 1 . . . . . . 1 . Unlock Access 1 | . . . . . 1 . . . . . . . . . . . . . Seal Access 3 | . . . . . . . . 1 . 1 . . . . . . 1 . Unauthorized Hacks 27 | . 7 . 7 . 1 . . 4 . 3 1 . . . 1 . 3 . Terminals 24 | . 7 . 7 . 1 . . 4 . 2 1 . . . 1 . 1 . Assimilate 2 | . . . . . . . . 1 . 1 . . . . . . . . Botnet 8 | . 1 . 1 . 1 . . 2 . 1 1 . . . 1 . . . Operators 3 | . . . 1 . . . . 1 . . . . . . . . 1 . Skim 11 | . 6 . 5 . . . . . . . . . . . . . . . Fabricators 3 | . . . . . . . . . . 1 . . . . . . 2 . Liberate 3 | . . . . . . . . . . 1 . . . . . . 2 . Repair Stations . | . . . . . . . . . . . . . . . . . . . Recycling Units . | . . . . . . . . . . . . . . . . . . . Scanalyzers . | . . . . . . . . . . . . . . . . . . . Garrison Access . | . . . . . . . . . . . . . . . . . . . Data Cores Recovered 1 | . 1 . . . . . . . . . . . . . . . . . Used . | . . . . . . . . . . . . . . . . . . . Hacking Detections 60 | . 7 1 9 . 1 2 1 5 . 7 8 . 3 . 8 1 4 3 Full Trace Events 2 | . . . . . . . . . . . . . . . . 1 . 1 Feedback Events . | . . . . . . . . . . . . . . . . . . . Feedback Blocked . | . . . . . . . . . . . . . . . . . . . Robot Schematics Acquired . | . . . . . . . . . . . . . . . . . . . Robots Built . | . . . . . . . . . . . . . . . . . . . Authchips . | . . . . . . . . . . . . . . . . . . . Time 187 | . . . . . . . . . . . . . . . . . 187 . Total Robot Build Rating . | . . . . . . . . . . . . . . . . . . . Part Schematics Acquired 3 | . 1 . . . . . . . . 1 . . 1 . . . . . Parts Built 2 | . . . . . . . . . . . . . . . 2 . . . Authchips . | . . . . . . . . . . . . . . . . . . . Time 64 | . . . . . . . . . . . . . . . 64 . . . Total Part Build Rating 16 | . . . . . . . . . . . . . . . 16 . . . Part Studies Acquired 4 | . . . 4 . . . . . . . . . . . . . . . Parts Repaired 5 | . . . 4 . . . . . . 1 . . . . . . . . Time 221 | . . . 135 . . . . . . 86 . . . . . . . . Parts Recycled . | . . . . . . . . . . . . . . . . . . . Recycled Matter . | . . . . . . . . . . . . . . . . . . . Retrieved Matter . | . . . . . . . . . . . . . . . . . . . Retrieved Components . | . . . . . . . . . . . . . . . . . . . Parts Scanalyzed 2 | . . . . . . . . . . 1 . . 1 . . . . . Part Schematics Acquired 2 | . . . . . . . . . . 1 . . 1 . . . . . Parts Damaged . | . . . . . . . . . . . . . . . . . . . Bothacking | -11 -10 -10 -9 -9 -8 -8 -8 -7 -7 -7 -6 -6 -6 -6 -5 -5 -4 -4 ------------ Run | Yrd Mat Min Mat Min Mat Gar Mat Fac Was Fac Fac Was Fac DSF Fac Ext Fac Arm Used RIF Installer 1 | . . . . . . 1 . . . . . . . . . . . . Robots Hacked . | . . . . . . . . . . . . . . . . . . . Non-combat . | . . . . . . . . . . . . . . . . . . . Combat . | . . . . . . . . . . . . . . . . . . . Robot Hacks Applied . | . . . . . . . . . . . . . . . . . . . Relay Couplers Released 4 | . . . . . . 4 . . . . . . . . . . . . Machine Destruction 4 | . . . . . . 4 . . . . . . . . . . . . Fabnet Peak Effective % . | . . . . . . . . . . . . . . . . . . . Robots Rewired 18 | . . . . . . . . . . . . . . . . 1 . 17 Allies Hacked 2 | . . . . . . . . 1 . . . . . . . . . 1 Hacks Repelled . | . . . . . . . . . . . . . . . . . . . Allies | -11 -10 -10 -9 -9 -8 -8 -8 -7 -7 -7 -6 -6 -6 -6 -5 -5 -4 -4 -------- Run | Yrd Mat Min Mat Min Mat Gar Mat Fac Was Fac Fac Was Fac DSF Fac Ext Fac Arm Total Allies 24 | . . 1 . 1 . . . 1 . 1 . . . . . 3 . 17 Largest Group 9 | . . 1 . 1 1 . . 1 . 1 . . . . . 2 . 9 Highest-Rated Group 538 | . . 31 . 31 31 . . 10 . 26 . . . . . 42 . 538 Highest-Rated Ally 64 | . . 31 . 31 31 . . 10 . 26 . . . . . 31 . 64 Total Orders . | . . . . . . . . . . . . . . . . . . . Ally Attacks 103 | . . . . . 10 . . . . . . . . . . 16 . 77 Total Damage 2961 | . . . . . 103 . . . . . . . . . . 361 . 2497 Kills 19 | . . . . . . . . . . . . . . . . 3 . 16 Allies Corrupted 1 | . . . . . . . . . . . . . . . . . . 1 Allies Melted . | . . . . . . . . . . . . . . . . . . . Intel | -11 -10 -10 -9 -9 -8 -8 -8 -7 -7 -7 -6 -6 -6 -6 -5 -5 -4 -4 ------- Run | Yrd Mat Min Mat Min Mat Gar Mat Fac Was Fac Fac Was Fac DSF Fac Ext Fac Arm Active Infowar (turns) 11989 | 47 1562 1263 2570 1985 343 568 888 1370 2 272 328 23 68 38 194 11 147 310 Sensors 978 | . . . . . . . . . . 198 326 23 68 38 110 . 20 195 A.S.S. 2006 | . . . . . . . 634 1370 2 . . . . . . . . . Terrain 6 | . . . . . . . . . . . . . . . . . 6 . Structural 1403 | . . . . . . . 224 . . 207 328 23 68 38 194 9 141 171 Seismic 8555 | 47 1562 1263 2570 1985 343 568 217 . . . . . . . . . . . Jamming 2 | . . . . . . . . . . . . . . . . 2 . . ECM 115 | . . . . . . . . . . . . . . . . . . 115 Robot Analysis Total . | . . . . . . . . . . . . . . . . . . . Derelict Logs Recovered 3 | . . 2 . 1 . . . . . . . . . . . . . . Drone Launches . | . . . . . . . . . . . . . . . . . . . Drone Recoveries . | . . . . . . . . . . . . . . . . . . . Exploration | -11 -10 -10 -9 -9 -8 -8 -8 -7 -7 -7 -6 -6 -6 -6 -5 -5 -4 -4 ------------- Run | Yrd Mat Min Mat Min Mat Gar Mat Fac Was Fac Fac Was Fac DSF Fac Ext Fac Arm Turns Passed 13849 | 119 1562 1263 3425 2000 343 832 889 1370 108 404 328 23 68 38 194 243 154 486 Spaces Moved 8386 | 56 613 491 1076 544 106 412 297 641 78 853 850 72 266 108 490 419 307 707 Core 321 | 13 . . . . . . . . 61 28 . . . . . . . 219 Treads 3651 | 43 613 491 1076 544 106 58 62 641 17 . . . . . . . . . Legs . | . . . . . . . . . . . . . . . . . . . Wheels 589 | . . . . . . 354 235 . . . . . . . . . . . Hover 170 | . . . . . . . . . . . . . . . . . 2 168 Flight 3655 | . . . . . . . . . . 825 850 72 266 108 490 419 305 320 Fastest Speed 19 | 50 160 240 200 200 200 135 135 160 50 23 23 23 23 19 22 25 35 35 Average Speed 116 | 145 214 240 231 200 200 153 173 160 73 25 23 23 23 22 23 28 35 45 Slowest Speed 400 | 160 240 240 400 200 200 280 280 160 160 50 25 23 23 23 26 35 70 131 Overloaded Moves 14 | . . . . . . . . . . . . . . 14 . . . . Propulsion Burnouts . | . . . . . . . . . . . . . . . . . . . Robots Hopped 24 | . . . . . . . . . . 1 . . . 3 . 13 3 4 Potential Cave-ins 12 | . 3 . . 5 . . 4 . . . . . . . . . . . Cave-ins Triggered . | . . . . . . . . . . . . . . . . . . . Exploration Rate (%) 46 | 4 93 97 72 99 10 56 33 21 67 30 24 60 9 76 14 51 11 49 Regions Visited 18 Branch Regions 4 Pre-discovered Areas 5 | . . . 5 . . . . . . . . . . . . . . . Known Exits Taken 10 | . . 1 1 1 1 . 1 . . 1 . . 1 . 1 1 1 . Unknown Exits Taken 2 | 1 1 . . . . . . . . . . . . . . . . . Scrap Searched 2 | . . 1 . 1 . . . . . . . . . . . . . . Spaces Dug 196 | . 28 17 10 . 26 14 39 5 . 1 7 . 1 . 4 22 3 19 Terrain Destroyed 482 | . 46 29 77 1 48 33 67 6 58 15 7 . 1 . 4 33 3 54 Melee 29 | . . . . . . . . 5 . 1 7 . 1 . 4 1 3 7 Projectile 5 | . . . . 1 . . 3 1 . . . . . . . . . . AOE 448 | . 46 29 77 . 48 33 64 . 58 14 . . . . . 32 . 47 Terrain Rammed . | . . . . . . . . . . . . . . . . . . . Walls Destroyed . | . . . . . . . . . . . . . . . . . . . Machines Disabled . | . . . . . . . . . . . . . . . . . . . Actions | -11 -10 -10 -9 -9 -8 -8 -8 -7 -7 -7 -6 -6 -6 -6 -5 -5 -4 -4 --------- Run | Yrd Mat Min Mat Min Mat Gar Mat Fac Was Fac Fac Was Fac DSF Fac Ext Fac Arm Total 11707 | 83 777 534 1873 1446 202 538 560 906 106 1008 966 77 272 115 545 522 336 841 Wait 2346 | 13 77 5 611 892 71 39 125 183 8 102 76 6 . 9 21 76 15 17 Move 8326 | 55 612 490 1075 543 106 411 297 641 77 850 850 71 265 101 489 393 300 700 Hop 22 | . . . . . . . . . . 1 . . . 3 . 12 3 3 Pick Up 120 | 3 23 2 28 1 1 12 20 8 1 7 7 . 3 . . 1 1 2 Fast Attach 70 | 7 . . 10 . 1 2 2 4 . 14 5 . . . 3 5 7 10 Attach 34 | . . 1 2 . 1 5 5 2 3 5 1 . . . 2 1 1 5 Detach 16 | . . . . . . 1 2 . 1 5 2 . . . . 1 . 4 Swap 116 | 1 9 5 38 5 6 8 22 11 1 2 3 . . . 1 2 2 . Drop 133 | . 9 2 42 1 . 8 31 13 4 5 9 . 3 . 1 2 1 2 Fire 299 | 4 46 19 66 3 16 39 56 26 11 5 . . . . . 2 . 6 Melee 76 | . . . . . . . . 15 . 12 13 . 1 2 13 2 6 12 Ram 2 | . . . . . . . . . . . . . . . . . . 2 Kick . | . . . . . . . . . . . . . . . . . . . Crush 16 | . 1 10 1 1 . . . 3 . . . . . . . . . . Escape Stasis 38 | . . . . . . 12 . . . . . . . . 15 11 . . Rewire 92 | . . . . . . . . . . . . . . . . 14 . 78 Trap 1 | . . . . . . 1 . . . . . . . . . . . . Miscellaneous . | . . . . . . . . . . . . . . . . . . . Route ------- -11/Scrapyard -10/Materials (discovered 5 exits: *Mat x3 / *Min / *Sub) -10/Mines (discovered 3 exits: *Mat x2 / Sub) -9/Materials (discovered 5 exits: *Mat x2 / *Min / *Sto x2) -9/Mines (discovered 3 exits: *Mat x2 / [*Exi]) -8/Materials -8/Garrison (discovered 3 exits: *Mat x3) -8/Materials -7/Factory (discovered 2 exits: Low x2) -7/Waste -7/Factory -6/Factory (discovered 2 exits: *Low x2) -6/Waste -6/Factory (discovered 3 exits: Low x2 / DSF) -6/DSF -5/Factory -5/Extension -4/Factory (discovered 3 exits: Upp x2 / *Arm) -4/Armory History --------- Turn | Location | Event 5 | -11/Scrapyard | Discovered new exit (range 15) 120 | -11/Scrapyard | Entered Materials 302 | -10/Materials | Build established: Mutant 503 | -10/Materials | Discovered new exit (range 16) 585 | -10/Materials | Learned location of 2 exits from Mines 620 | -10/Materials | Derelicts attacked the area 626 | -10/Materials | Identified exit to Materials 943 | -10/Materials | Discovered exit to Materials (range 11) 1183 | -10/Materials | Discovered new exit (range 10) 1501 | -10/Materials | Discovered new exit (range 9) 1682 | -10/Materials | Entered Mines 1683 | -10/Mines | Identified exit to Subcaves 1989 | -10/Mines | Found a hidden stash of uninstalled traps 2233 | -10/Mines | Received a Mining Laser from a helpful Derelict 2235 | -10/Mines | Discovered exit to Materials (range 10) 2653 | -10/Mines | Learned location of 1 exit from Materials 2945 | -10/Mines | Entered Materials 2945 | -9/Materials | Evolved 2 slots: Weapon x2 2946 | -9/Materials | Identified exit to Storage 2947 | -9/Materials | Identified exit to Mines 3240 | -9/Materials | Build established: Gunner 3653 | -9/Materials | Build established: Scavenger-Gunner 4041 | -9/Materials | Discovered exit to Storage (range 5) 4172 | -9/Materials | Build established: Gunner 4494 | -9/Materials | Build established: Scavenger-Gunner 4513 | -9/Materials | Repaired Seismic Detector 4540 | -9/Materials | Repaired Grenade Launcher 4573 | -9/Materials | Repaired Hvy. Assault Rifle+ 4625 | -9/Materials | Repaired Adv. Beam Cannon 4665 | -9/Materials | Discovered new exit (range 9) 5054 | -9/Materials | Build established: Gunner 5964 | -9/Materials | Destroyed 10 combat bots 6059 | -9/Materials | Learned location of Zion (-6) 6181 | -9/Materials | Learned Storage emergency access door positions 6203 | -9/Materials | Learned location of 1 exit from Storage 6233 | -9/Materials | Identified exit to Materials 6303 | -9/Materials | Learned location of Mines (-9) 6370 | -9/Materials | Entered Mines 6371 | -9/Mines | Assembled infested the area 7594 | -9/Mines | Core integrity fell below 50% 7597 | -9/Mines | Destroyed YI-UF0 7680 | -9/Mines | Discovered exit to Materials (range 11) 8055 | -9/Mines | Learned Materials garrison access intel 8081 | -9/Mines | Discovered exit to Materials (range 16) 8153 | -9/Mines | Deemed a non-threat by the Exiles lab entrance 8155 | -9/Mines | Discovered new exit (range 5) 8186 | -9/Mines | Escorted by a lone wolf Derelict 8370 | -9/Mines | Entered Materials 8370 | -8/Materials | Accompanied by 1 ally 8370 | -8/Materials | Evolved 2 slots: Utility x2 8371 | -8/Materials | Loaded intel: 1 garrison access location 8713 | -8/Materials | Identified exit to Garrison 8713 | -8/Materials | Entered Garrison 8795 | -8/Garrison | Triggered checkpoint 8898 | -8/Garrison | Garrison Relay disabled 9013 | -8/Garrison | Triggered checkpoint 9014 | -8/Garrison | Triggered checkpoint 9055 | -8/Garrison | Lost 4 parts (1p1u2w) 9061 | -8/Garrison | Destroyed 7 combat bots 9141 | -8/Garrison | Discovered new exit (range 14) 9150 | -8/Garrison | Learned Materials security intel 9269 | -8/Garrison | Triggered checkpoint 9304 | -8/Garrison | Discovered new exit (range 10) 9304 | -8/Garrison | Discovered new exit (range 75) 9304 | -8/Garrison | Discovered new exit (range 60) 9521 | -8/Garrison | Installed Relay Interface Framework 9545 | -8/Garrison | Entered Materials 9791 | -8/Materials | Lost 4 parts (1n1u2w) 9800 | -8/Materials | Found Prototype Device 9800 | -8/Materials | Identified Active Sensor Suite 9908 | -8/Materials | Destroyed 7 combat bots 10125 | -8/Materials | Garrison activated, responded to threat 10127 | -8/Materials | Build established: Scavenger-Skirmisher 10301 | -8/Materials | Discovered new exit (range 7) 10432 | -8/Materials | Identified exit to Factory 10434 | -8/Materials | Entered Factory 10434 | -7/Factory | Evolved 2 slots: Propulsion x2 11749 | -7/Factory | Identified exit to Lower Caves 11804 | -7/Factory | Sucked down chute 11804 | -7/Factory | Entered Waste 11842 | -7/Waste | Spotted C-40 Crusher 11848 | -7/Waste | Spotted C-40 Crusher 11848 | -7/Waste | Spotted C-40 Crusher 11851 | -7/Waste | Destroyed C-40 Crusher 11860 | -7/Waste | Spotted C-40 Crusher 11872 | -7/Waste | Crushed by Compactor (1 part destroyed, 2 dropped) 11873 | -7/Waste | Destroyed C-40 Crusher 11875 | -7/Waste | Crushed by Compactor (1 part destroyed, 1 dropped) 11878 | -7/Waste | Crushed by Compactor (1 part destroyed, 1 dropped) 11880 | -7/Waste | Spotted C-40 Crusher 11890 | -7/Waste | Spotted C-40 Crusher 11902 | -7/Waste | Discovered new exit (range 10) 11909 | -7/Waste | Lost 4 parts (2n1u1w) 11912 | -7/Waste | Entered Factory 12014 | -7/Factory | Repaired Broken Adv. Surge Thruster 12256 | -7/Factory | Central database locked down 12262 | -7/Factory | P-60 Hacker assimilated allied Administrator 4a 12307 | -7/Factory | Discovered new exit (range 14) 12313 | -7/Factory | Identified exit to Factory 12316 | -7/Factory | Entered another Factory area 12316 | -6/Factory | Evolved 2 slots: Propulsion x1, Utility x1 12451 | -6/Factory | Identified exit to Lower Caves 12458 | -6/Factory | Build established: Scout 12644 | -6/Factory | Sucked down chute 12644 | -6/Factory | Entered Waste 12646 | -6/Waste | Spotted C-40 Crusher 12650 | -6/Waste | Spotted C-40 Crusher 12651 | -6/Waste | Spotted C-40 Crusher 12652 | -6/Waste | Spotted C-40 Crusher 12656 | -6/Waste | Spotted C-40 Crusher 12657 | -6/Waste | Discovered new exit (range 15) 12657 | -6/Waste | Spotted C-40 Crusher 12667 | -6/Waste | Identified exit to Factory 12667 | -6/Waste | Entered Factory 12735 | -6/Factory | Identified exit to DSF 12735 | -6/Factory | Entered DSF 12771 | -6/DSF | Discovered new exit (range 12) 12773 | -6/DSF | Identified exit to Factory 12773 | -6/DSF | Entered Factory 12773 | -5/Factory | Evolved 2 slots: Power x1, Propulsion x1 12820 | -5/Factory | Discovered new exit (range 6) 12820 | -5/Factory | Identified exit to Extension 12918 | -5/Factory | Fabricated Q-thruster (x2) 12967 | -5/Factory | Entered Extension 13002 | -5/Extension | Energy Cycler disabled 13002 | -5/Extension | Rescued a captive Derelict 13002 | -5/Extension | Rescued a captive Derelict 13002 | -5/Extension | Rescued a captive Derelict 13002 | -5/Extension | Rescued a captive Derelict 13003 | -5/Extension | Rescued a captive Derelict 13004 | -5/Extension | Rescued a captive Derelict 13004 | -5/Extension | Rescued a captive Derelict 13009 | -5/Extension | Rescued a captive Derelict 13060 | -5/Extension | Lost 6 parts (2p3n1u) 13198 | -5/Extension | Lost 5 parts (1p2n2w) 13199 | -5/Extension | Spotted B-75 Beast 13202 | -5/Extension | Discovered new exit (range 16) 13203 | -5/Extension | Spotted B-75 Beast 13207 | -5/Extension | Core integrity fell below 50% 13210 | -5/Extension | Identified exit to Factory 13210 | -5/Extension | Entered Factory 13210 | -4/Factory | Evolved 2 slots: Utility x2 13303 | -4/Factory | Identified exit to Upper Caves 13303 | -4/Factory | Identified exit to Armory 13364 | -4/Factory | Entered Armory 13458 | -4/Armory | Energy Cycler disabled 13552 | -4/Armory | Lost 3 allies 13590 | -4/Armory | Lost 9 parts (2p1n5u1w) 13613 | -4/Armory | Core integrity fell below 50% 13644 | -4/Armory | Core integrity fell below 20% 13850 | -4/Armory | Lost 6 allies 13850 | -4/Armory | Destroyed by G-67 Veteran with Field Laser Last Messages --------------- 13821_ Antigrav System destroyed. 13822_ The unstable cave ceiling collapses. 13822_ Slug penetrates Wall. 13822_ Lgt. Quantum Reactor destroyed. 13823_ G-67 Veteran heat damages Flexi-carbon Leg. 13825_ Assassin 7c shuts down. 13825_ Slug penetrates G-67 Veteran. 13825_ D-63 Destroyer destroyed. 13825_ Penetrated by Slug. 13825_ Slug penetrates Y-64 Sentinel. 13827_ The unstable cave ceiling collapses. 13828_ Slug penetrates Wall. 13829_ I7D AFS RBDLTXBP,QV4DBBDP